fUST/lending_fUST_20260303
["ID","MTS","AMOUNT","RATE_DAILY","PERIOD"]
[407531295,1772536242918,-500.0,0.00010092,2]
[407531297,1772536242928,-500.0,0.00010098,2]
[407531299,1772536242937,-500.0,0.00010395,2]
[407531301,1772536242946,-265.0,0.00010398,2]
[407531303,1772536242955,-247.0,0.00010398,2]
[407531305,1772536242964,-300.0,0.00010398,2]
[407531307,1772536242973,-1200.0,0.00010398,2]
[407531309,1772536242982,-3038.90416791,0.00010399,2]
[407531311,1772536242991,-300.0,0.00010399,2]
[407531313,1772536243000,-787.0,0.000104,2]
[407531315,1772536243010,-1078.60797101,0.000104,2]
[407531317,1772536243019,-150.0,0.00010426,2]
[407531319,1772536243029,-150.0,0.00010426,2]
[407531321,1772536243038,-150.95387676,0.00010426,2]
[407531323,1772536243047,-800.0,0.0001047,2]
[407531325,1772536243056,-600.0,0.0001047,3]
[407531327,1772536243066,-400.0,0.0001047,4]
[407531329,1772536243074,-683.2171268,0.00010474,2]
[407531331,1772536243083,-2697.399526,0.00010474,2]
[407531332,1772536243092,-922.93201918,0.00010477,2]
[407531334,1772536243102,-150.0,0.00010481,2]
[407531336,1772536243111,-153.64845962,0.00010481,2]
[407531338,1772536243120,-174.867,0.00010499,2]
[407531340,1772536243129,-450.96048453,0.00010499,2]
[407531342,1772536243139,-500.0,0.00010499,2]
[407531344,1772536243148,-500.0,0.00010499,2]
[407531346,1772536243157,-500.0,0.00010499,2]
[407531347,1772536243167,-500.0,0.00010499,2]
[407531348,1772536243177,-500.0,0.00010499,2]
[407531349,1772536243186,-409.58155429,0.00010499,2]
[407531350,1772536243196,-500.0,0.00010499,2]
[407531351,1772536243205,-500.0,0.00010499,2]
[407531352,1772536243215,-500.0,0.00010499,2]
[407531353,1772536243224,-424.71824123,0.00010499,2]
[407531354,1772536243233,-3798.82474374,0.000105,2]
[407536018,1772536345260,1196.468932,0.00013,60]
[407536019,1772536345285,2000.0,0.00013,60]
[407536020,1772536345310,2000.0,0.00013,60]
[407536023,1772536467930,362849.75,9.501e-05,2]
[407536028,1772536934870,4723.0,9.501e-05,2]
[407536030,1772537125575,1000.0,0.00011,30]
[407536032,1772537375684,853.29,9.501e-05,2]
[407536073,1772537438014,-500.0,9.748e-05,2]
[407536075,1772537438024,-362.42919885,9.821e-05,2]
[407536077,1772537438034,-322.66459429,0.0001004,2]
[407536079,1772537438044,-808.53051035,0.00010394,2]
[407536081,1772537438054,-808.53051035,0.00010396,2]
[407536083,1772537438065,-808.53051035,0.00010397,2]
[407536085,1772537438074,-808.53051035,0.00010399,2]
[407536087,1772537438083,-808.53051035,0.000104,2]
[407536089,1772537438093,-770.594516,0.00010436,2]
[407536091,1772537438102,-615.28801279,0.00010477,2]
[407536093,1772537438111,-300.0,0.00010492,2]
[407536095,1772537438120,-1200.0,0.00010492,2]
[407536097,1772537438132,-166.48456558,0.00010493,2]
[407536099,1772537438143,-500.0,0.00010493,2]
[407536101,1772537438153,-500.0,0.00010493,2]
[407536103,1772537438163,-168.92,0.00010495,2]
[407536105,1772537438175,-500.0,0.00010499,2]
[407536107,1772537438185,-500.0,0.00010499,2]
[407536109,1772537438195,-500.0,0.00010499,2]
[407536111,1772537438205,-500.0,0.00010499,2]
[407536113,1772537438214,-500.0,0.00010499,2]
[407536115,1772537438223,-500.0,0.00010499,2]
[407536117,1772537438232,-500.0,0.00010499,2]
[407536119,1772537438241,-500.0,0.00010499,2]
[407536121,1772537438251,-500.0,0.00010499,2]
[407536123,1772537438260,-500.0,0.00010499,2]
[407536125,1772537438269,-500.0,0.00010499,2]
[407536127,1772537438279,-500.0,0.00010499,2]
[407536129,1772537438288,-500.0,0.00010499,2]
[407536131,1772537438298,-500.0,0.00010499,2]
[407536133,1772537438307,-500.0,0.00010499,2]
[407536135,1772537438316,-500.0,0.00010499,2]
[407536137,1772537438325,-500.0,0.00010499,2]
[407536139,1772537438334,-500.0,0.00010499,2]
[407536140,1772537438343,-500.0,0.00010499,2]
[407536143,1772537438352,-500.0,0.00010499,2]
[407536145,1772537438361,-500.0,0.00010499,2]
[407536147,1772537438371,-500.0,0.00010499,2]
[407536148,1772537438380,-500.0,0.00010499,2]
[407536150,1772537438389,-500.0,0.00010499,2]
[407536152,1772537438398,-500.0,0.00010499,2]
[407536154,1772537438407,-500.0,0.00010499,2]
[407536156,1772537438416,-500.0,0.00010499,2]
[407536158,1772537438425,-500.0,0.00010499,2]
[407536160,1772537438435,-500.0,0.00010499,2]
[407536162,1772537438443,-207.4303915,0.00010499,2]
[407536164,1772537438452,-500.0,0.00010499,2]
[407536166,1772537438462,-545.65511015,0.00010499,2]
[407536168,1772537438470,-35525.75792286,0.000105,2]
[407536171,1772537438486,-2000.38884425,0.000105,2]
[407536173,1772537438497,-34959.6533242,0.000105,2]
[407536181,1772537440515,-808.4544273,0.000105,2]
[407536182,1772537440571,-20129.52466545,0.000105,2]
[407536183,1772537440583,-1177.93474205,0.000105,2]
[407536187,1772537443062,-3053.95347556,0.000105,2]
[407536188,1772537443116,-1357.39668019,0.000105,2]
[407536189,1772537443128,-8008.41106366,0.000105,2]
[407536190,1772537443142,-6157.11987568,0.000105,2]
[407536200,1772537446068,-1105.54026057,9.647e-05,2]
[407536201,1772537446077,-6602.3071152,0.000105,2]
[407536202,1772537446089,-9623.01735481,0.000105,2]
[407536203,1772537446144,-28024.64066622,0.000105,2]
[407536207,1772537462779,-1500.0,0.00010395,2]
[407536223,1772538631924,-29.01091201,9.893e-05,2]
[407536224,1772538631935,-3129.54502457,9.893e-05,2]
[407536225,1772538631945,-355.18061487,9.993e-05,2]
[407536226,1772538631954,-1315.22000043,0.0001,10]
[407536227,1772538631966,-340.79505817,0.0001,10]
[407536245,1772538638082,-1280.48644394,0.0001,10]
[407536247,1772538638092,-162.32183148,0.0001043,2]
[407536249,1772538638102,-1200.0,0.00010472,2]
[407536252,1772538638114,-300.0,0.00010473,2]
[407536254,1772538638124,-1116.15830807,0.00010474,3]
[407536323,1772538640545,-668.55393708,0.00010474,3]
[407536328,1772538643707,-2696.16969513,0.00010474,3]
[407536329,1772538643717,-410.19200852,0.00010477,2]
[407536330,1772538643728,-168.92178478,0.00010477,2]
[407536331,1772538643739,-500.0,0.00010495,2]
[407536332,1772538643748,-500.0,0.00010495,2]
[407536333,1772538643757,-500.0,0.00010495,2]
[407536334,1772538643766,-500.0,0.00010495,2]
[407536335,1772538643775,-594.02938581,0.00010495,2]
[407536344,1772538646018,-32.6500252,0.00010495,2]
[407536346,1772538646027,-500.0,0.00010495,2]
[407536348,1772538646036,-500.0,0.00010495,2]
[407536349,1772538646046,-500.0,0.00010495,2]
[407536350,1772538646055,-500.0,0.00010495,2]
[407536351,1772538646065,-500.0,0.00010495,2]
[407536352,1772538646075,-500.0,0.00010495,2]
[407536353,1772538646084,-500.0,0.00010495,2]
[407536354,1772538646094,-500.0,0.00010495,2]
[407536355,1772538646104,-500.0,0.00010495,2]
[407536356,1772538646114,-500.0,0.00010495,2]
[407536357,1772538646123,-500.0,0.00010495,2]
[407536358,1772538646132,-500.0,0.00010495,2]
[407536359,1772538646142,-500.0,0.00010495,2]
[407536360,1772538646151,-520.74303915,0.00010495,2]
[407536361,1772538646160,-500.0,0.00010495,2]
[407536362,1772538646170,-270.05215486,0.00010495,2]
[407536363,1772538646189,-229.94784514,0.00010495,2]
[407536364,1772538646198,-500.0,0.00010495,2]
[407536365,1772538646208,-500.0,0.00010495,2]
[407536366,1772538646218,-500.0,0.00010495,2]
[407536367,1772538646228,-500.0,0.00010495,2]
[407536368,1772538646239,-500.0,0.00010495,2]
[407536369,1772538646249,-500.0,0.00010495,2]
[407536370,1772538646259,-500.0,0.00010495,2]
[407536371,1772538646269,-500.0,0.00010495,2]
[407536372,1772538646278,-500.0,0.00010495,2]
[407536373,1772538646288,-500.0,0.00010495,2]
[407536374,1772538646298,-500.0,0.00010495,2]
[407536375,1772538646308,-500.0,0.00010495,2]
[407536376,1772538646318,-500.0,0.00010495,2]
[407536377,1772538646328,-500.0,0.00010495,2]
[407536378,1772538646338,-500.0,0.00010495,2]
[407536379,1772538646349,-500.0,0.00010495,2]
[407536380,1772538646359,-134.11026541,0.00010495,2]
[407536381,1772538865204,529.47618504,0.000157,120]
[407536382,1772539060986,3044.7595879,9.444e-05,2]
[407536384,1772539395695,300.42,9.412e-05,2]
[407536403,1772539832059,-2314.23566813,9.762e-05,2]
[407536404,1772539832118,-2149.95247103,9.762e-05,2]
[407536557,1772539843926,-293.13819652,9.762e-05,2]
[407536559,1772539843936,-381.64779255,9.987e-05,2]
[407536561,1772539843946,-560.0,9.987e-05,2]
[407536563,1772539843956,-300.0,0.00010393,2]
[407536565,1772539843966,-730.0,0.00010394,2]
[407536566,1772539843976,-432.0,0.00010394,2]
[407536567,1772539843986,-580.656,0.00010394,2]
[407536568,1772539843995,-576.0,0.00010394,2]
[407536569,1772539844006,-1780.11454026,0.00010395,2]
[407536570,1772539844016,-267.02492657,0.000104,2]
[407536571,1772539844027,-642.162096,0.00010433,2]
[407536572,1772539844037,-3365.06006404,0.0001045,2]
[407536573,1772539844047,-500.0,0.00010457,2]
[407536574,1772539844056,-280.08255991,0.00010457,2]
[407536575,1772539844066,-402.964379,0.00010457,2]
[407536576,1772539844075,-500.0,0.00010457,2]
[407536577,1772539844085,-500.0,0.00010457,2]
[407536578,1772539844094,-476.41554464,0.00010457,2]
[407536606,1772539846536,-23.58445536,0.00010457,2]
[407536608,1772539846546,-500.0,0.00010457,2]
[407536609,1772539846555,-500.0,0.00010457,2]
[407536611,1772539846564,-500.0,0.00010457,2]
[407536613,1772539846574,-500.0,0.00010457,2]
[407536614,1772539846583,-500.0,0.00010457,2]
[407536616,1772539846592,-500.0,0.00010457,2]
[407536618,1772539846602,-500.0,0.00010457,2]
[407536619,1772539846611,-500.0,0.00010457,2]
[407536620,1772539846621,-500.0,0.00010457,2]
[407536622,1772539846630,-500.0,0.00010457,2]
[407536623,1772539846639,-500.0,0.00010457,2]
[407536624,1772539846649,-500.0,0.00010457,2]
[407536625,1772539846658,-214.84686707,0.00010457,2]
[407536626,1772539846667,-500.0,0.00010457,2]
[407536627,1772539846676,-402.64906481,0.00010457,2]
[407536635,1772540402628,265.67,6.9e-05,2]
[407536636,1772540428195,439.12883104,9.501e-05,2]
[407536638,1772540861926,151.0,0.000157,120]
[407536639,1772540870509,151.0,0.000157,120]
[407536640,1772540879112,151.0,0.000157,120]
[407536641,1772540887899,151.0,0.000157,120]
[407536642,1772540895594,151.0,0.000157,120]
[407536643,1772540903698,151.0,0.000157,120]
[407536644,1772540914463,151.0,0.000157,120]
[407536648,1772541032302,-553.0,9.512e-05,2]
[407536649,1772541032312,-374.0148367,9.512e-05,2]
[407536650,1772541032322,-204.16147395,9.512e-05,7]
[407536651,1772541032332,-405.96688406,9.512e-05,2]
[407536781,1772541038701,-2248.00207244,9.512e-05,2]
[407536782,1772541038711,-300.0,0.00010329,2]
[407536783,1772541038721,-12490.0,0.0001033,2]
[407536784,1772541038730,-409.00334873,0.00010332,2]
[407536785,1772541038740,-500.0,0.00010332,2]
[407536786,1772541038749,-500.0,0.00010332,2]
[407536787,1772541038759,-550.03513971,0.00010332,2]
[407536788,1772541038769,-500.0,0.00010332,2]
[407536789,1772541038779,-278.77018991,0.00010332,2]
[407536790,1772541038788,-500.0,0.00010332,2]
[407536791,1772541038798,-500.0,0.00010332,2]
[407536792,1772541038807,-286.10287631,0.00010332,2]
[407536793,1772541038819,-213.89712369,0.00010332,2]
[407536794,1772541038829,-500.0,0.00010332,2]
[407536795,1772541038838,-500.0,0.00010332,2]
[407536796,1772541038848,-500.0,0.00010332,2]
[407536797,1772541038858,-500.0,0.00010332,2]
[407536798,1772541038869,-500.0,0.00010332,2]
[407536799,1772541038879,-500.0,0.00010332,2]
[407536800,1772541038888,-500.0,0.00010332,2]
[407536801,1772541038899,-500.0,0.00010332,2]
[407536802,1772541038908,-500.0,0.00010332,2]
[407536803,1772541038917,-500.0,0.00010332,2]
[407536804,1772541038926,-500.0,0.00010332,2]
[407536805,1772541038936,-500.0,0.00010332,2]
[407536806,1772541038945,-500.0,0.00010332,2]
[407536807,1772541038954,-500.0,0.00010332,2]
[407536808,1772541038963,-500.0,0.00010332,2]
[407536809,1772541038972,-500.0,0.00010332,2]
[407536810,1772541038981,-500.0,0.00010332,2]
[407536811,1772541038990,-500.0,0.00010332,2]
[407536812,1772541038999,-500.0,0.00010332,2]
[407536813,1772541039009,-500.0,0.00010332,2]
[407536814,1772541039018,-391.46558106,0.00010332,2]
[407536815,1772541039030,-108.53441894,0.00010332,2]
[407536816,1772541039040,-500.0,0.00010332,2]
[407536817,1772541039049,-500.0,0.00010332,2]
[407536818,1772541039059,-488.46232943,0.00010332,2]
[407536819,1772541039070,-500.0,0.00010332,2]
[407536820,1772541039079,-500.0,0.00010332,2]
[407536821,1772541039089,-270.53325163,0.00010332,2]
[407536958,1772541047036,-177.97070369,0.00010332,2]
[407536960,1772541047046,-500.0,0.00010332,2]
[407536962,1772541047055,-500.0,0.00010332,2]
[407536964,1772541047065,-500.0,0.00010332,2]
[407536966,1772541047075,-575.49636266,0.00010332,2]
[407536968,1772541047084,-500.0,0.00010332,2]
[407536970,1772541047094,-500.0,0.00010332,2]
[407536972,1772541047103,-500.0,0.00010332,2]
[407536974,1772541047112,-500.0,0.00010332,2]
[407536976,1772541047122,-500.0,0.00010332,2]
[407536978,1772541047131,-500.0,0.00010332,2]
[407536980,1772541047140,-500.0,0.00010332,2]
[407536982,1772541047150,-500.0,0.00010332,2]
[407536983,1772541047161,-500.0,0.00010332,2]
[407536985,1772541047171,-500.0,0.00010332,2]
[407536987,1772541047180,-500.0,0.00010332,2]
[407536989,1772541047188,-500.0,0.00010332,2]
[407536991,1772541047199,-500.0,0.00010332,2]
[407536993,1772541047208,-500.0,0.00010332,2]
[407536995,1772541047217,-500.0,0.00010332,2]
[407536997,1772541047226,-500.0,0.00010332,2]
[407536999,1772541047237,-500.0,0.00010332,2]
[407537001,1772541047247,-500.0,0.00010332,2]
[407537003,1772541047256,-500.0,0.00010332,2]
[407537004,1772541047265,-211.51975804,0.00010332,2]
[407537006,1772541047274,-37.42071728,0.00010332,2]
[407537037,1772541047575,-462.57928272,0.00010332,2]
[407537039,1772541047584,-500.0,0.00010332,2]
[407537041,1772541047593,-500.0,0.00010332,2]
[407537043,1772541047602,-500.0,0.00010332,2]
[407537045,1772541047611,-500.0,0.00010332,2]
[407537047,1772541047621,-500.0,0.00010332,2]
[407537049,1772541047630,-500.0,0.00010332,2]
[407537051,1772541047639,-500.0,0.00010332,2]
[407537053,1772541047648,-500.0,0.00010332,2]
[407537055,1772541047657,-1584.4683216,0.00010333,2]
[407537057,1772541047666,-14807.4608948,0.00010333,2]
[407537059,1772541047678,-381.9585771,0.00010399,2]
[407537061,1772541047687,-2794.06741569,0.000104,2]
[407538447,1772541063193,-300.0,0.00010399,2]
[407538454,1772541063256,-300.0,0.000104,2]
[407538457,1772541063272,-443.56538444,0.000104,2]
[407550478,1772541518549,300.0,9.425e-05,2]
[407553724,1772542232442,-418.39155672,0.000101,3]
[407553813,1772542246568,-426.1333651,0.000101,3]
[407553814,1772542246580,-366.53453996,0.00010218,2]
[407553815,1772542246589,-3779.0,0.00010335,2]
[407553816,1772542246600,-300.0,0.00010339,2]
[407553817,1772542246610,-3855.58643614,0.0001034,2]
[407553818,1772542246623,-2428.60405326,0.0001034,2]
[407553819,1772542246633,-150.0,0.00010384,2]
[407553820,1772542246644,-7044.44006918,0.00010398,2]
[407553821,1772542400518,500.0,9.5e-05,2]
[407553833,1772542863032,-652.60369059,9.984e-05,2]
[407553834,1772542863061,-561.0,0.00010085,2]
[407553835,1772542863090,-363.30903153,0.00010162,2]
[407553836,1772542863119,-410.19200852,0.0001029,2]
[407553837,1772542863228,-1805.53845932,0.00010343,2]
[407553838,1772542892492,-617.87966396,0.00010343,2]
[407553839,1772542892530,-751.34540272,0.00010343,2]
[407553840,1772542921947,-273.46133902,0.0001029,2]
[407553841,1772542921992,-70.95698592,0.00010389,2]
[407553855,1772542951378,-273.46133902,0.00010389,2]
[407553875,1772543283499,176.57,5.994e-05,2]
[407553889,1772543431630,-4935.246198,9.99e-05,5]
[407553890,1772543431685,-2429.85716395,9.99e-05,5]
[407553891,1772543431697,-635.41563311,9.99e-05,5]
[407553892,1772543431708,-414.55764836,9.99e-05,5]
[407554434,1772543445998,-313.1967136,9.99e-05,5]
[407556839,1772543552359,-150.0,0.00013782,30]
[407556840,1772543555205,-150.0,0.00013782,30]
[407556841,1772543556989,-150.0,0.00013782,30]
[407556842,1772543562566,-118.0360618,0.00013782,30]
[407556851,1772544030122,3259.1,9.501e-05,2]
[407556852,1772544143868,-150.0,0.00013865,30]
[407556853,1772544144734,5000.0,9.501e-05,2]
[407556854,1772544145637,-150.0,0.00013865,30]
[407556855,1772544147323,-150.0,0.00013865,30]
[407556856,1772544148990,-118.0360618,0.00013865,30]
[407556857,1772544166871,1079.7479206,9.501e-05,2]
[407556925,1772544632406,-500.0,9.508e-05,2]
[407556927,1772544632416,-231.01728966,9.571e-05,2]
[407556933,1772544632458,-125.02556124,9.571e-05,2]
[407556934,1772544632468,-193.36844353,9.984e-05,2]
[407556987,1772544643308,-306.63155647,9.984e-05,2]
[407556988,1772544643318,-351.03867608,0.000101,2]
[407556989,1772544643327,-1695.62582352,0.00010152,2]
[407556990,1772544643337,-150.0,0.0001022,2]
[407556991,1772544643346,-67.35394393,0.00010252,2]
[407556994,1772544646095,-1246.32820227,0.00010252,2]
[407557025,1772544662919,-2128.64866603,0.00010252,2]
[407557026,1772545006282,1000.0,9.501e-05,2]
[407557027,1772545017645,1000.0,9.501e-05,2]
[407557028,1772545028735,10000.0,9.501e-05,2]
[407557029,1772545037629,10000.0,9.501e-05,2]
[407557030,1772545084048,158.3,5.994e-05,2]
[407557031,1772545084392,158.3,5.994e-05,2]
[407557032,1772545086688,1000.0,9.501e-05,2]
[407557033,1772545095600,1000.0,9.501e-05,2]
[407557041,1772545203485,153.68,6.9e-05,2]
[407557042,1772545203961,153.68,6.9e-05,2]
[407557043,1772545204524,153.68,7e-05,2]
[407557044,1772545204888,153.68,7e-05,2]
[407557045,1772545205439,153.68,7.1e-05,2]
[407557046,1772545205828,153.68,7.1e-05,2]
[407557047,1772545206740,153.68,7.2e-05,2]
[407557048,1772545210275,153.68,7.2e-05,2]
[407557049,1772545211090,153.68,7.2e-05,2]
[407557050,1772545211184,153.68,7.3e-05,2]
[407557051,1772545211644,153.68,7.3e-05,2]
[407557052,1772545212279,153.68,7.4e-05,2]
[407557053,1772545212757,153.68,7.4e-05,2]
[407557054,1772545213102,153.68,7.5e-05,2]
[407557055,1772545213550,153.68,7.5e-05,2]
[407557056,1772545213910,153.68,7.5e-05,2]
[407557057,1772545214376,153.68,7.6e-05,2]
[407557058,1772545287257,1373.86216883,9.501e-05,2]
[407557060,1772545523796,-150.0,0.0001287,20]
[407557061,1772545525711,-150.0,0.0001287,20]
[407557062,1772545527220,-150.0,0.0001287,20]
[407557065,1772545531686,-61.23245562,0.0001287,20]
[407557066,1772545587863,-150.0,0.00012992,22]
[407557067,1772545589526,-150.0,0.00012992,22]
[407557068,1772545590958,-150.0,0.00012992,22]
[407557069,1772545598297,-61.23245562,0.00012992,22]
[407557070,1772545625693,281.36415858,9.335e-05,2]
[407557071,1772545628654,321.23747933,9.335e-05,2]
[407557072,1772545668066,2094.62,9.501e-05,2]
[407557073,1772545743165,219.73534196,9.335e-05,2]
[407557074,1772545746902,395.52361552,9.335e-05,2]
[407557075,1772545749629,703.15309427,9.335e-05,2]
[407557076,1772545752841,1097.57803308,9.335e-05,2]
[407557095,1772545832339,-359.97417159,9.752e-05,2]
[407557096,1772545832348,-1006.76483162,9.92e-05,2]
[407557097,1772545832358,-733.2009717,9.99e-05,5]
[407557098,1772545832369,-2474.90616433,9.99e-05,5]
[407557099,1772545832381,-250.00187028,9.99e-05,5]
[407557100,1772545832400,-7852.37767396,9.99e-05,5]
[407557132,1772545838236,-1465.00951315,9.99e-05,5]
[407557135,1772545838247,-5199.95634752,9.99e-05,5]
[407557141,1772545838296,-25689.12745906,9.99e-05,5]
[407557143,1772545838305,-300.0,9.998e-05,2]
[407557145,1772545838315,-300.0,9.998e-05,2]
[407557147,1772545838324,-1200.0,9.998e-05,2]
[407557149,1772545838334,-208.67377899,9.998e-05,2]
[407557151,1772545838344,-500.0,9.998e-05,2]
[407557153,1772545838353,-263.84380988,9.998e-05,2]
[407557155,1772545838362,-374.22982116,9.998e-05,2]
[407557157,1772545838371,-500.0,9.998e-05,2]
[407557159,1772545838381,-500.0,9.998e-05,2]
[407557161,1772545838391,-500.0,9.998e-05,2]
[407557163,1772545838400,-500.0,9.998e-05,2]
[407557165,1772545838409,-500.0,9.999e-05,2]
[407557166,1772545838419,-14500.48218758,9.999e-05,2]
[407557169,1772545838428,-468.97945589,9.999e-05,2]
[407557170,1772545838438,-178.28561912,9.999e-05,2]
[407557173,1772545838447,-175063.1876186,0.0001,2]
[407557175,1772545838457,-1006.76483158,0.00010014,2]
[407557177,1772545838466,-500.0,0.0001002,2]
[407557178,1772545838477,-1006.76483158,0.00010107,2]
[407557181,1772545838487,-150.0,0.0001011,2]
[407557182,1772545838496,-174.0625242,0.0001011,2]
[407557185,1772545838506,-261.16339272,0.0001011,2]
[407557186,1772545838516,-150.0,0.0001011,2]
[407557189,1772545838525,-150.0,0.0001011,2]
[407557190,1772545838535,-192.78136935,0.0001011,2]
[407557193,1772545838545,-256.21712517,0.00010165,2]
[407557194,1772545838554,-150.0,0.00010165,2]
[407557196,1772545838564,-170.0,0.000102,2]
[407557199,1772545838573,-1006.76483158,0.00010201,2]
[407557201,1772545838582,-164.805742,0.0001022,2]
[407557203,1772545838595,-151.0,0.00010238,2]
[407557204,1772545838607,-151.0,0.00010239,2]
[407557206,1772545838618,-2109.263692,0.00010239,2]
[407557208,1772545838628,-658.87372539,0.00010245,2]
[407557210,1772545838637,-639.52435288,0.00010252,2]
[407557213,1772545838647,-500.0,0.00010273,2]
[407557215,1772545838658,-486.18765542,0.0001029,2]
[407557216,1772545838667,-1006.76483158,0.00010294,2]
[407557218,1772545838677,-738.73,0.000103,2]
[407557220,1772545838688,-151.0,0.0001032,2]
[407557223,1772545838698,-2230.315306,0.0001032,2]
[407557224,1772545838707,-151.0,0.0001032,2]
[407557226,1772545838717,-151.0,0.0001032,2]
[407557228,1772545838727,-151.0,0.0001032,2]
[407557230,1772545838736,-151.0,0.0001032,2]
[407557233,1772545838746,-151.0,0.0001032,2]
[407557234,1772545838755,-151.0,0.0001032,2]
[407557237,1772545838766,-151.0,0.0001032,2]
[407557238,1772545838775,-151.0,0.0001032,2]
[407557241,1772545838785,-151.0,0.0001032,2]
[407557243,1772545838795,-151.0,0.0001032,2]
[407557244,1772545838805,-151.0,0.0001032,2]
[407557247,1772545838814,-151.0,0.0001032,2]
[407557248,1772545838824,-151.0,0.0001032,2]
[407557251,1772545838835,-157.442,0.00010325,2]
[407557253,1772545838844,-247.2341491,0.00010326,2]
[407557255,1772545838854,-10961.3376925,0.00010326,2]
[407557257,1772545838864,-1715.063852,0.00010326,2]
[407557258,1772545838874,-387.46413455,0.00010339,2]
[407557260,1772545838883,-438.74190672,0.00010339,2]
[407557262,1772545838892,-789.7354321,0.00010339,2]
[407557265,1772545838902,-4560.95346164,0.00010352,2]
[407557267,1772545838912,-866.4476627,0.00010352,2]
[407557269,1772545838921,-166.747,0.00010376,2]
[407557271,1772545838930,-156.587,0.00010394,2]
[407557273,1772545838939,-461.67526834,0.00010394,2]
[407557275,1772545838950,-250.0,0.00010394,2]
[407557276,1772545838960,-4000.0,0.00010394,2]
[407557279,1772545838970,-500.0,0.00010394,2]
[407557281,1772545838979,-250.0,0.00010394,2]
[407557283,1772545838988,-4000.0,0.00010394,2]
[407557285,1772545838999,-500.0,0.00010394,2]
[407557286,1772545839008,-250.0,0.00010394,2]
[407557288,1772545839017,-4000.0,0.00010394,2]
[407557290,1772545839026,-500.0,0.00010394,2]
[407557292,1772545839036,-250.0,0.00010394,2]
[407557294,1772545839045,-4000.0,0.00010394,2]
[407557296,1772545839055,-500.0,0.00010394,2]
[407557298,1772545839063,-250.0,0.00010394,2]
[407557299,1772545839072,-4000.0,0.00010394,2]
[407557301,1772545839082,-500.0,0.00010394,2]
[407557303,1772545839092,-250.0,0.00010394,2]
[407557305,1772545839101,-4000.0,0.00010394,2]
[407557306,1772545839111,-500.0,0.00010394,2]
[407557307,1772545839121,-250.0,0.00010394,2]
[407557308,1772545839130,-4000.0,0.00010394,2]
[407557309,1772545839139,-512.28788683,0.00010394,2]
[407557310,1772545839149,-250.0,0.00010394,2]
[407557311,1772545839159,-4000.0,0.00010394,2]
[407557312,1772545839168,-250.0,0.00010394,2]
[407557313,1772545839178,-4000.0,0.00010394,2]
[407557314,1772545839187,-250.0,0.00010394,2]
[407557315,1772545839197,-4000.0,0.00010394,2]
[407557316,1772545839206,-4000.0,0.00010394,2]
[407557317,1772545839215,-250.0,0.00010394,2]
[407557318,1772545839225,-4000.0,0.00010394,2]
[407557319,1772545839235,-275.43304623,0.00010394,2]
[407557320,1772545839244,-4000.0,0.00010394,2]
[407557321,1772545839253,-4000.0,0.00010394,2]
[407557322,1772545839263,-4000.0,0.00010394,2]
[407557323,1772545839272,-4000.0,0.00010394,2]
[407557324,1772545839282,-4000.0,0.00010394,2]
[407557325,1772545839291,-151.0,0.00010394,2]
[407557326,1772545839302,-4539.10041777,0.00010395,2]
[407557327,1772545839311,-8461.16494335,0.000104,2]
[407557328,1772545839321,-6468.0845067,0.000104,2]
[407557329,1772545839330,-5861.02395549,0.000104,2]